bitfinex-derivatives/quotes_SOLF0:USTF0_20260208
["timestamp","ask_amount","ask_price","bid_price","bid_amount"]
[1770574972867,4.00706529,87.189,87.142,3.9984336]
[1770574978375,4.00706529,87.189,87.144,14.3341336]
[1770574981368,4.00706529,87.219,87.16,4.37234184]
[1770574981677,4.00706529,87.219,87.171,3.9984336]
[1770574981978,4.37234184,87.21,87.171,3.9984336]
[1770574982276,4.00706529,87.219,87.171,3.9984336]
[1770574983878,4.00706529,87.251,87.173,3.9984336]
[1770574984078,4.37234184,87.23,87.191,3.9984336]
[1770574984276,4.37234184,87.22,87.171,3.9984336]
[1770574984478,4.37234184,87.22,87.16,4.37234184]
[1770574984479,4.00706529,87.219,87.161,3.9984336]
[1770574985670,4.00706529,87.219,87.165,10.3332]
[1770574985874,4.00706529,87.219,87.166,3.9984336]
[1770574989877,4.00706529,87.199,87.153,3.9984336]
[1770574990781,4.00706529,87.199,87.156,10.3343]
[1770574992479,8.38450897,87.22,87.161,3.9984336]
[1770574993482,8.38450897,87.22,87.171,3.9984336]
[1770574993785,8.38450897,87.22,87.174,3.9984336]
[1770574993984,4.37744368,87.23,87.174,3.9984336]
[1770574994180,4.00706529,87.235,87.181,3.9984336]
[1770574994478,9.43287911,87.234,87.182,3.9984336]
[1770574994682,4.00706529,87.235,87.182,3.9984336]
[1770574995678,4.00706529,87.235,87.184,3.75278461]
[1770574995879,4.00706529,87.235,87.191,3.75278461]
[1770574996478,4.00706529,87.235,87.193,3.75278461]
[1770574996678,9.43357575,87.234,87.193,3.75278461]
[1770574996880,4.00706529,87.235,87.193,3.75278461]
[1770574997082,9.43357575,87.234,87.193,3.75278461]
[1770574997388,3.95668582,87.229,87.183,10.331]
[1770574997582,9.43348872,87.228,87.183,10.331]
[1770574997884,9.43348872,87.227,87.184,3.75278461]
[1770574998080,4.37744368,87.24,87.199,10.3291]
[1770574998279,3.95668582,87.239,87.199,10.3291]
[1770574998487,3.95668582,87.239,87.184,3.75278461]
[1770574999685,3.95668582,87.239,87.189,10.3303]
[1770574999878,3.95668582,87.239,87.19,3.75278461]
[1770575000676,3.95668582,87.239,87.192,14.08278461]
[1770575001283,3.95668582,87.239,87.192,3.75278461]
[1770575001479,3.95668582,87.229,87.182,10.3311]
[1770575001884,3.95668582,87.229,87.183,3.75278461]
[1770575002390,3.95668582,87.229,87.185,3.75278461]
[1770575003291,3.95668582,87.229,87.19,10.3302]
[1770575004591,3.95668582,87.229,87.19,14.08298461]
[1770575005187,3.95668582,87.229,87.18,4.37744368]
[1770575005386,14.27662419,87.277,87.162,34.43]
[1770575005387,3.95668582,87.219,87.172,3.75278461]
[1770575006784,3.95668582,87.219,87.175,10.3321]
[1770575007192,4.37744368,87.21,87.175,10.3321]
[1770575007593,3.95668582,87.209,87.164,10.3333]
[1770575007988,3.95668582,87.199,87.141,3.75278461]
[1770575008193,4.37744368,87.18,87.141,3.75278461]
[1770575011791,3.95668582,87.187,87.141,3.75278461]
[1770575011987,4.37744368,87.2,87.143,3.75278461]
[1770575012188,4.37744368,87.21,87.16,4.37744368]
[1770575012395,8.3341295,87.21,87.161,3.75278461]
[1770575012592,3.95668582,87.21,87.161,3.75278461]
[1770575012992,3.95668582,87.21,87.169,10.3327]
[1770575013193,8.3341295,87.23,87.171,3.75278461]
[1770575013499,3.95668582,87.229,87.171,3.75278461]
[1770575014795,3.95668582,87.229,87.17,4.37744368]
[1770575014796,3.95668582,87.229,87.178,3.75278461]
[1770575015797,3.95668582,87.229,87.17,4.37744368]
[1770575015798,3.95668582,87.229,87.181,14.08408461]
[1770575016000,4.37744368,87.22,87.182,3.75278461]
[1770575016700,3.95668582,87.219,87.172,14.08508461]
[1770575019199,3.95668582,87.219,87.179,10.3315]
[1770575024707,4.37744368,87.23,87.186,3.75278461]
[1770575025001,3.91969091,87.228,87.186,3.75278461]
[1770575025199,3.91969091,87.226,87.186,3.75278461]
[1770575025402,3.91969091,87.225,87.186,3.75278461]
[1770575028403,3.91969091,87.225,87.187,10.3306]
[1770575031504,4.37744368,87.22,87.175,10.332]
[1770575031808,4.37744368,87.21,87.175,10.332]
[1770575032003,3.91969091,87.209,87.175,10.332]
[1770575032810,3.91969091,87.199,87.143,3.99197861]
[1770575033009,4.37744368,87.19,87.143,3.99197861]
[1770575034707,3.91969091,87.199,87.151,10.3348]
[1770575034905,4.37744368,87.18,87.143,3.99197861]
[1770575035410,3.91969091,87.179,87.143,3.99197861]
[1770575036204,3.91969091,87.179,87.136,10.3366]
[1770575037210,3.91969091,87.179,87.137,3.99197861]
[1770575037812,4.37744368,87.18,87.139,3.99197861]
[1770575038105,14.27662419,87.223,87.102,34.43]
[1770575038106,4.37744368,87.2,87.141,3.99197861]
[1770575038710,8.29713459,87.2,87.141,3.99197861]
[1770575039208,4.37744368,87.19,87.141,3.99197861]
[1770575039402,3.91969091,87.199,87.141,3.99197861]
[1770575039709,3.91969091,87.199,87.147,3.99197861]
[1770575041513,3.91969091,87.199,87.152,3.99197861]
[1770575041709,4.37744368,87.21,87.161,3.99197861]
[1770575041916,4.37744368,87.22,87.161,3.99197861]
[1770575042508,4.37744368,87.22,87.171,3.99197861]
[1770575043708,4.37744368,87.22,87.173,3.99197861]
[1770575044414,4.37744368,87.22,87.175,3.99197861]
[1770575045713,3.91969091,87.226,87.181,3.99197861]
[1770575046808,3.91969091,87.226,87.183,3.99197861]
[1770575047215,4.37744368,87.23,87.183,3.99197861]
[1770575047422,9.38735537,87.229,87.183,3.99197861]
[1770575047621,9.38735537,87.228,87.183,3.99197861]
[1770575047922,4.37744368,87.23,87.183,3.99197861]
[1770575048226,9.38735012,87.229,87.185,3.99197861]
[1770575048411,9.38735012,87.228,87.185,3.99197861]
[1770575048611,3.91969091,87.239,87.185,3.99197861]
[1770575048820,3.91969091,87.237,87.185,3.99197861]
[1770575049021,3.91969091,87.235,87.185,3.99197861]
[1770575049215,13.30677567,87.234,87.185,3.99197861]
[1770575049417,9.38708476,87.233,87.185,3.99197861]
[1770575049617,9.38708476,87.232,87.185,3.99197861]
[1770575049814,3.91969091,87.249,87.191,3.99197861]
[1770575050020,3.91969091,87.247,87.191,3.99197861]
[1770575050219,3.91969091,87.245,87.191,3.99197861]
[1770575050521,13.30642768,87.244,87.191,3.99197861]
[1770575050722,9.38673677,87.243,87.2,10.3291]
[1770575050923,9.38673677,87.242,87.2,10.3291]
[1770575051221,3.91969091,87.244,87.2,10.3291]
[1770575051422,9.38404839,87.243,87.2,10.3291]
[1770575051721,9.38404839,87.242,87.2,10.3291]
[1770575051927,3.91969091,87.244,87.2,10.3291]
[1770575051928,9.38404839,87.241,87.2,10.3291]
[1770575052222,3.91969091,87.244,87.201,3.99197861]
[1770575052418,9.38193632,87.243,87.201,3.99197861]
[1770575052625,9.38193632,87.242,87.201,3.99197861]
[1770575052820,3.91969091,87.244,87.201,3.99197861]
[1770575053017,9.38193632,87.243,87.201,3.99197861]
[1770575053219,9.38193632,87.242,87.201,3.99197861]
[1770575053519,3.91969091,87.244,87.201,3.99197861]
[1770575053712,4.37292213,87.25,87.19,4.37292213]
[1770575053713,9.38102739,87.243,87.203,3.99197861]
[1770575053918,4.37292213,87.25,87.203,3.99197861]
[1770575054125,9.38101575,87.249,87.203,3.99197861]
[1770575054321,4.37292213,87.25,87.203,3.99197861]
[1770575054322,9.38101575,87.248,87.203,3.99197861]
[1770575054523,9.38101575,87.247,87.203,3.99197861]
[1770575054719,9.38101575,87.246,87.203,3.99197861]
[1770575054928,9.38101575,87.245,87.203,3.99197861]
[1770575055119,9.38101575,87.244,87.203,3.99197861]
[1770575055316,9.38101575,87.243,87.203,3.99197861]
[1770575055622,9.38101575,87.242,87.203,3.99197861]
[1770575055818,9.38231722,87.241,87.203,3.99197861]
[1770575056020,8.30649712,87.25,87.203,3.99197861]
[1770575056224,13.31589279,87.249,87.203,3.99197861]
[1770575056527,9.3823178,87.248,87.203,3.99197861]
[1770575056730,9.3823178,87.247,87.203,3.99197861]
[1770575056926,9.3823178,87.246,87.203,3.99197861]
[1770575057227,9.3823178,87.245,87.203,3.99197861]
[1770575057416,9.3823178,87.244,87.203,3.99197861]
[1770575057615,9.3823178,87.243,87.203,3.99197861]
[1770575057828,9.3823178,87.242,87.203,3.99197861]
[1770575058029,9.3823178,87.241,87.203,3.99197861]
[1770575058226,9.3823178,87.24,87.203,3.99197861]
[1770575058428,9.3823178,87.239,87.203,3.99197861]
[1770575058624,3.93357499,87.249,87.203,3.99197861]
[1770575058829,13.33727034,87.248,87.203,3.99197861]
[1770575059027,13.33727034,87.247,87.203,3.99197861]
[1770575059227,9.40369535,87.246,87.203,3.99197861]
[1770575059528,3.93357499,87.247,87.203,3.99197861]
[1770575059529,9.40369535,87.245,87.203,3.99197861]
[1770575059729,9.40369535,87.244,87.203,3.99197861]
[1770575059929,9.40369535,87.243,87.203,3.99197861]
[1770575060130,9.40369535,87.242,87.203,3.99197861]
[1770575060427,9.40369535,87.241,87.203,3.99197861]
[1770575060628,9.40369535,87.24,87.203,3.99197861]
[1770575060828,3.93357499,87.247,87.203,3.99197861]
[1770575061028,9.40165195,87.246,87.203,3.99197861]
[1770575061226,9.40165195,87.245,87.206,3.70527318]
[1770575061420,3.93357499,87.247,87.206,3.70527318]
[1770575062020,3.93357499,87.26,87.211,3.70527318]
[1770575062316,9.39986099,87.259,87.211,3.70527318]
[1770575062520,9.39986099,87.258,87.211,3.70527318]
[1770575062717,3.93357499,87.26,87.211,3.70527318]
[1770575062925,1847.6208266,87.702,87.231,3.70527318]
[1770575062926,3.93357499,87.273,87.231,3.70527318]
[1770575063122,3.93357499,87.287,87.231,3.70527318]
[1770575063327,3.93357499,87.285,87.231,3.70527318]
[1770575064228,3.93357499,87.285,87.241,3.70527318]
[1770575064730,3.93357499,87.285,87.242,14.02937318]
[1770575065634,3.93357499,87.285,87.243,3.70527318]
[1770575066830,3.93357499,87.269,87.215,3.70527318]
[1770575067131,3.93357499,87.269,87.221,3.70527318]
[1770575067724,3.93357499,87.269,87.222,10.3264]
[1770575068326,3.93357499,87.269,87.223,3.70527318]
[1770575069830,3.93357499,87.269,87.227,10.3259]
[1770575070136,3.93357499,87.269,87.227,14.03117318]
[1770575070332,3.93357499,87.269,87.227,3.70527318]
[1770575071834,3.93357499,87.259,87.217,10.327]
[1770575074433,3.93357499,87.259,87.218,3.70527318]
[1770575074633,3.93357499,87.273,87.221,3.70527318]
[1770575075637,3.93357499,87.269,87.221,3.70527318]
[1770575075835,3.93357499,87.269,87.226,10.326]
[1770575077437,3.93357499,87.269,87.229,3.70527318]
[1770575077739,10.3178,87.296,87.229,3.70527318]
[1770575077740,4.37292213,87.28,87.229,3.70527318]
[1770575078128,3.93357499,87.293,87.242,3.70527318]
[1770575078342,3.93357499,87.289,87.242,3.70527318]
[1770575080141,4.37292213,87.28,87.242,3.70527318]
[1770575080344,8.30649712,87.28,87.242,3.70527318]
[1770575080641,3.93357499,87.279,87.242,3.70527318]
[1770575081732,3.93357499,87.279,87.232,10.3253]
[1770575084541,3.93357499,87.269,87.232,10.3253]
[1770575086141,3.92059204,87.259,87.216,10.3271]
[1770575087942,9.38476207,87.258,87.216,10.3271]
[1770575088146,9.38476207,87.257,87.216,10.3271]
[1770575088341,9.38476207,87.256,87.216,10.3271]
[1770575088538,3.92059204,87.259,87.216,10.3271]
[1770575088742,9.38781025,87.258,87.216,10.3271]
[1770575089044,9.38781025,87.257,87.216,10.3271]
[1770575089240,9.38781025,87.256,87.216,10.3271]
[1770575089545,9.38781025,87.255,87.216,10.3271]
[1770575089840,3.92059204,87.259,87.216,10.3271]
[1770575090043,9.39113036,87.258,87.216,14.1968131]
[1770575090238,9.39113036,87.257,87.216,14.1968131]
[1770575090444,9.39113036,87.256,87.217,3.8697131]
[1770575090640,9.39113036,87.255,87.217,3.8697131]
[1770575090944,9.39113036,87.254,87.217,3.8697131]
[1770575091144,9.39113036,87.253,87.217,3.8697131]
[1770575091346,3.92059204,87.259,87.217,3.8697131]
[1770575091546,9.39679114,87.258,87.217,3.8697131]
[1770575091753,9.39679114,87.257,87.217,3.8697131]
[1770575091941,9.39679114,87.256,87.217,3.8697131]
[1770575092246,9.39679114,87.255,87.217,3.8697131]
[1770575092447,9.39679114,87.254,87.217,3.8697131]
[1770575092646,9.39679114,87.253,87.217,3.8697131]
[1770575092943,3.92059204,87.269,87.221,3.8697131]
[1770575093148,3.92059204,87.267,87.221,3.8697131]
[1770575093342,13.31845872,87.266,87.221,3.8697131]
[1770575093538,9.39786668,87.265,87.221,3.8697131]
[1770575093746,9.39786668,87.264,87.221,3.8697131]
[1770575093946,9.39786668,87.263,87.221,3.8697131]
[1770575094141,9.39786668,87.262,87.221,3.8697131]
[1770575094341,9.39786668,87.261,87.221,3.8697131]
[1770575094540,9.39786668,87.26,87.221,3.8697131]
[1770575094747,3.92059204,87.266,87.221,3.8697131]
[1770575094947,13.32362496,87.265,87.221,3.8697131]
[1770575095147,9.40303292,87.264,87.221,3.8697131]
[1770575095350,9.40303292,87.263,87.221,3.8697131]
[1770575095650,9.40303292,87.262,87.221,3.8697131]
[1770575095843,9.40303292,87.261,87.221,3.8697131]
[1770575096043,9.40303292,87.26,87.221,3.8697131]
[1770575096244,3.92059204,87.265,87.221,3.8697131]
[1770575096444,13.32641355,87.264,87.221,3.8697131]
[1770575096645,9.40582151,87.263,87.221,3.8697131]
[1770575096845,3.92059204,87.264,87.221,3.8697131]
[1770575097044,9.40582151,87.263,87.223,3.8697131]
[1770575097244,3.92059204,87.264,87.223,3.8697131]
[1770575098749,4.37292213,87.27,87.229,10.3256]
[1770575098943,9.4082641,87.269,87.231,3.8697131]
[1770575099139,3.92059204,87.276,87.231,3.8697131]
[1770575099344,9.40948535,87.275,87.231,3.8697131]
[1770575099651,9.40948535,87.274,87.231,3.8697131]
[1770575099852,13.33007739,87.273,87.232,3.8697131]
[1770575100040,9.40948535,87.272,87.232,3.8697131]
[1770575100241,4.37292213,87.27,87.232,3.8697131]
[1770575100442,4.37292213,87.26,87.2,4.37292213]
[1770575100646,3.92059204,87.273,87.194,3.8697131]
[1770575100647,4.37292213,87.24,87.194,3.8697131]
[1770575100851,4.37292213,87.24,87.193,308.96378958]
[1770575101052,4.37292213,87.23,87.193,308.96378958]
[1770575101650,3.92059204,87.239,87.193,308.96378958]
[1770575101853,9.41398174,87.238,87.193,308.96378958]
[1770575102052,13.33457378,87.237,87.194,3.8697131]
[1770575102254,13.33365477,87.236,87.194,3.8697131]
[1770575102556,3.92059204,87.236,87.194,3.8697131]
[1770575103245,3.92059204,87.261,87.21,8.24263523]
[1770575103442,3.92059204,87.259,87.211,3.8697131]
[1770575103647,9.41093867,87.258,87.211,3.8697131]
[1770575103847,9.41093867,87.257,87.211,3.8697131]
[1770575104056,13.33153071,87.256,87.211,3.8697131]
[1770575104254,9.41093867,87.255,87.211,3.8697131]
[1770575104455,9.41093867,87.254,87.211,3.8697131]
[1770575104656,9.41093867,87.253,87.211,3.8697131]
[1770575104852,9.41093867,87.252,87.214,10.3274]
[1770575105058,9.41093867,87.251,87.214,10.3274]
[1770575105358,3.92059204,87.256,87.214,10.3274]
[1770575105558,13.3329832,87.255,87.214,10.3274]
[1770575105751,9.41239116,87.254,87.214,10.3274]
[1770575105949,9.41239116,87.253,87.22,3.8697131]
[1770575106257,3.92059204,87.268,87.221,3.8697131]
[1770575106754,3.92059204,87.28,87.231,3.8697131]
[1770575107059,9.41217033,87.279,87.231,3.8697131]
[1770575107258,9.41217033,87.278,87.231,3.8697131]
[1770575107456,9.41217033,87.277,87.231,3.8697131]
[1770575107646,9.41217033,87.276,87.231,3.8697131]
[1770575107851,9.41217033,87.275,87.233,3.8697131]
[1770575108151,3.92059204,87.28,87.233,3.8697131]
[1770575108357,9.41189478,87.279,87.233,3.8697131]
[1770575108554,9.41189478,87.278,87.233,3.8697131]
[1770575108754,9.41189478,87.277,87.236,14.1945131]
[1770575108957,9.41189478,87.276,87.236,14.1945131]
[1770575109159,9.41189478,87.275,87.236,14.1945131]
[1770575109359,3.92059204,87.28,87.237,3.8697131]
[1770575109659,13.33295659,87.279,87.237,3.8697131]
[1770575109861,9.41236455,87.278,87.238,10.3246]
[1770575110061,3.92059204,87.279,87.238,10.3246]
[1770575110062,9.41236455,87.277,87.238,10.3246]
[1770575110250,9.41236455,87.276,87.238,10.3246]
[1770575110452,9.41236455,87.275,87.238,10.3246]
[1770575110652,3.92059204,87.279,87.238,10.3246]
[1770575110653,9.41236455,87.274,87.238,10.3246]
[1770575110959,9.41236455,87.273,87.238,10.3246]
[1770575111155,3.92059204,87.279,87.238,10.3246]
[1770575111355,9.41354621,87.278,87.238,10.3246]
[1770575111555,9.41354621,87.277,87.238,14.1943131]
[1770575111756,3.92059204,87.279,87.241,3.8697131]
[1770575112060,9.41340613,87.278,87.241,3.8697131]
[1770575112265,3.92059204,87.279,87.241,3.8697131]
[1770575113658,3.92059204,87.298,87.251,3.8697131]
[1770575113857,9.41080578,87.297,87.251,3.8697131]
[1770575114061,9.41080578,87.296,87.251,3.8697131]
[1770575114354,9.41080578,87.295,87.251,3.8697131]
[1770575114559,9.41080578,87.294,87.251,3.8697131]
[1770575114760,9.41080578,87.293,87.251,14.1927131]
[1770575114960,9.41080578,87.292,87.252,3.81946497]
[1770575115160,3.92059204,87.298,87.252,3.81946497]
[1770575115463,13.45789283,87.297,87.252,3.81946497]
[1770575115656,9.4070188,87.296,87.252,3.81946497]
[1770575115961,9.4070188,87.295,87.252,3.81946497]
[1770575116154,9.4070188,87.294,87.252,3.81946497]
[1770575116458,9.4070188,87.293,87.252,3.81946497]
[1770575116659,9.4070188,87.292,87.252,3.81946497]
[1770575116859,9.4070188,87.291,87.252,3.81946497]
[1770575117056,9.4070188,87.29,87.252,3.81946497]
[1770575117258,4.05087403,87.297,87.252,3.81946497]
[1770575117459,13.45475068,87.296,87.252,3.81946497]
[1770575117659,9.40387665,87.295,87.252,3.81946497]
[1770575117860,9.40387665,87.294,87.252,3.81946497]
[1770575118162,9.40387665,87.293,87.252,3.81946497]
[1770575118460,9.40387665,87.292,87.252,3.81946497]
[1770575118755,4.05087403,87.296,87.252,3.81946497]
[1770575118959,10.69303754,87.318,87.258,3.81946497]
[1770575118960,4.05087403,87.294,87.258,3.81946497]
[1770575119150,9.40131996,87.293,87.258,3.81946497]
[1770575119352,4.05087403,87.294,87.258,3.81946497]
[1770575119551,9.39994602,87.293,87.258,3.81946497]
[1770575119757,4.05087403,87.289,87.246,10.3237]
[1770575120162,4.05087403,87.289,87.246,14.14316497]
[1770575120355,4.36834253,87.3,87.247,3.81946497]
[1770575120555,4.05087403,87.305,87.261,3.81946497]
[1770575120757,9.39780083,87.304,87.261,3.81946497]
[1770575120957,9.39780083,87.303,87.261,3.81946497]
[1770575121257,4.05087403,87.305,87.261,3.81946497]
[1770575121458,4.05087403,87.305,87.26,4.36834253]
[1770575121459,4.05087403,87.305,87.267,14.14056497]
[1770575122463,4.05087403,87.305,87.267,10.3211]
[1770575122663,4.05087403,87.305,87.257,10.3224]
[1770575122865,4.05087403,87.299,87.257,10.3224]
[1770575123761,4.05087403,87.297,87.257,10.3224]
[1770575123961,4.05087403,87.295,87.257,10.3224]
[1770575124161,4.05087403,87.293,87.257,10.3224]
[1770575132967,4.05087403,87.309,87.261,3.81946497]
[1770575135770,4.05087403,87.289,87.235,3.81946497]
[1770575135958,4.36834253,87.29,87.235,3.81946497]
[1770575135959,4.05087403,87.279,87.235,3.81946497]
[1770575136660,4.05087403,87.279,87.224,3.81946497]
[1770575136858,160.394,87.354,87.224,3.81946497]
[1770575136859,4.05087403,87.269,87.224,3.81946497]
[1770575138673,4.05087403,87.269,87.215,10.3273]
[1770575139669,4.05087403,87.259,87.218,10.3269]
[1770575139862,4.05087403,87.259,87.21,4.36834253]
[1770575139863,4.05087403,87.259,87.219,3.81946497]
[1770575140772,4.36834253,87.27,87.221,3.81946497]
[1770575141269,4.05087403,87.284,87.232,3.81946497]
[1770575141873,20.6214,87.356,87.205,3.81946497]
[1770575141874,4.05087403,87.269,87.205,3.81946497]
[1770575142073,4.05087403,87.269,87.211,3.81946497]
[1770575142873,4.05087403,87.259,87.221,10.3265]
[1770575143870,4.05087403,87.259,87.222,3.81946497]
[1770575144074,4.05087403,87.269,87.222,3.81946497]
[1770575145970,4.05087403,87.269,87.228,3.68898691]
[1770575146172,8.19090479,87.28,87.228,3.68898691]
[1770575147374,3.82256226,87.279,87.234,3.68898691]
[1770575148668,3.82256226,87.279,87.237,10.3246]
[1770575148867,3.82256226,87.279,87.238,3.68898691]
[1770575150574,10.3159,87.312,87.238,3.68898691]
[1770575150779,3.82256226,87.299,87.251,3.68898691]
[1770575151380,3.82256226,87.299,87.254,3.68898691]
[1770575152775,4.36834253,87.31,87.25,4.36834253]
[1770575152776,4.36834253,87.31,87.259,3.68898691]
[1770575153083,9.41228337,87.309,87.259,3.68898691]
[1770575153272,9.41228337,87.308,87.259,3.68898691]
[1770575153473,3.82256226,87.309,87.259,3.68898691]
[1770575153677,9.41153335,87.308,87.26,10.322]
[1770575153978,3.82256226,87.309,87.261,3.68898691]
[1770575154180,9.41153335,87.308,87.261,3.68898691]
[1770575154379,3.82256226,87.309,87.261,3.68898691]
[1770575154579,13.23343594,87.308,87.261,3.68898691]
[1770575154877,3.82256226,87.308,87.261,3.68898691]
[1770575156687,9.40992531,87.307,87.261,3.68898691]
[1770575156985,9.40992531,87.306,87.268,3.68898691]
[1770575157286,3.82256226,87.323,87.271,3.68898691]
[1770575158683,3.82256226,87.323,87.277,3.68898691]
[1770575159788,3.82256226,87.323,87.279,3.68898691]
[1770575160298,3.82256226,87.323,87.281,3.68898691]
[1770575161384,10.66787134,87.347,87.281,3.68898691]
[1770575161385,3.82256226,87.319,87.281,3.68898691]
[1770575161787,3.82256226,87.319,87.269,3.68898691]
[1770575163387,3.82256226,87.309,87.269,3.68898691]
[1770575169002,14.27662419,87.363,87.253,3.68898691]
[1770575169003,3.82256226,87.299,87.253,3.68898691]
[1770575169205,4.36834253,87.29,87.253,3.68898691]
[1770575169400,8.19090479,87.29,87.253,3.68898691]
[1770575169600,3.82256226,87.289,87.253,3.68898691]
[1770575170704,3.82256226,87.316,87.261,3.68898691]
[1770575171007,3.82256226,87.316,87.271,3.68898691]
[1770575171803,3.82256226,87.316,87.28,10.3196]
[1770575176608,3.82256226,87.316,87.284,3.80236854]
[1770575180612,3.82256226,87.316,87.252,34.43]
[1770575180613,3.72724373,87.341,87.291,3.80236854]
[1770575180808,10.31,87.362,87.291,3.80236854]
[1770575180809,3.72724373,87.339,87.291,3.80236854]
[1770575181709,3.72724373,87.329,87.279,10.3197]
[1770575182413,3.72724373,87.329,87.279,14.12206854]
[1770575184314,3.72724373,87.329,87.28,3.80236854]
[1770575184809,3.72724373,87.329,87.281,3.80236854]
[1770575186307,3.72724373,87.329,87.284,3.80236854]
[1770575186904,3.83156703,87.369,87.32,4.36487167]
[1770575187107,14.27662419,87.396,87.31,0.45832555]
[1770575187108,3.83156703,87.367,87.31,0.45832555]
[1770575187317,3.83156703,87.359,87.311,0.45832555]
[1770575187609,3.82886313,87.349,87.301,0.46373337]
[1770575188210,3.82886313,87.381,87.321,0.46373337]
[1770575188417,3.82886313,87.369,87.321,0.46373337]
[1770575189112,3.82886313,87.369,87.331,0.46373337]
[1770575189418,3.82886313,87.389,87.341,0.33330823]
[1770575189715,3.89407569,87.387,87.341,0.33330823]
[1770575189913,9.33183567,87.386,87.341,0.33330823]
[1770575190111,3.89407569,87.415,87.37,4.36487167]
[1770575190315,3.89407569,87.415,87.371,0.33330823]
[1770575190816,706.81200995,87.442,87.356,0.33330823]
[1770575190817,3.89407569,87.409,87.356,0.33330823]
[1770575191016,3.89407569,87.409,87.37,4.36487167]
[1770575191218,3.89407569,87.419,87.36,4.36487167]
[1770575191513,3.89407569,87.399,87.341,0.27495662]
[1770575194609,3.89407569,87.399,87.345,10.3119]
[1770575195513,3.88174663,87.389,87.341,0.27495662]
[1770575195910,3.88499369,87.409,87.351,0.35147223]
[1770575196215,3.88499369,87.409,87.334,308.40998553]
[1770575196216,3.88499369,87.409,87.361,0.35147223]
[1770575196617,3.88499369,87.409,87.365,0.35147223]
[1770575197320,3.88499369,87.409,87.37,4.36487167]
[1770575197506,3.88499369,87.409,87.371,0.32472214]
[1770575198314,3.88499369,87.409,87.36,4.36487167]
[1770575198716,3.88499369,87.409,87.354,10.3108]
[1770575198916,3.89836874,87.399,87.351,0.32472214]
[1770575199815,3.89836874,87.399,87.334,308.40998553]
[1770575199816,3.89836874,87.399,87.36,4.36487167]
[1770575200908,3.89157554,87.412,87.361,0.33830853]
[1770575201115,3.89157554,87.412,87.37,4.36487167]
[1770575201422,3.89157554,87.409,87.361,0.33830853]
[1770575201614,3.88682741,87.399,87.348,0.34780479]
[1770575202018,3.88682741,87.399,87.36,4.36487167]
[1770575202717,3.88682741,87.419,87.37,4.36487167]
[1770575203314,3.88682741,87.419,87.371,10.3089]
[1770575203712,3.86882747,87.409,87.36,4.36487167]
[1770575203919,3.86882747,87.409,87.35,4.74867634]
[1770575204710,3.86882747,87.409,87.356,10.3105]
[1770575205116,3.86882747,87.409,87.35,4.74867634]
[1770575205425,3.86882747,87.399,87.35,4.74867634]
[1770575207721,3.86882747,87.399,87.352,10.311]
[1770575207916,3.86882747,87.399,87.36,4.36487167]
[1770575208521,3.86519977,87.419,87.371,0.38623508]
[1770575209319,3.86519977,87.419,87.374,10.3084]
[1770575211115,3.86519977,87.419,87.37,4.36487167]
[1770575211320,3.86519977,87.419,87.363,10.3098]
[1770575213417,3.86519977,87.419,87.369,10.3091]
[1770575213622,3.86519977,87.419,87.37,4.36487167]
[1770575214222,3.86519977,87.419,87.373,10.3086]
[1770575215028,3.86519977,87.419,87.373,10.72211675]
[1770575217330,3.86519977,87.419,87.373,10.3086]
[1770575219431,3.86283499,87.409,87.373,10.3086]
[1770575221030,3.85488907,87.399,87.348,0.40685647]
[1770575222435,3.85488907,87.399,87.351,0.39950495]
[1770575222837,3.85488907,87.399,87.35,4.36487167]
[1770575222838,3.85488907,87.399,87.354,0.39950495]
[1770575225435,3.8803859,87.424,87.375,10.3084]
[1770575225640,3.8803859,87.424,87.375,10.6679349]
[1770575226042,3.87854986,87.458,87.39,4.36487167]
[1770575226235,10.2986,87.459,87.382,0.3595349]
[1770575226236,3.87854986,87.439,87.382,0.3595349]
[1770575227436,3.87854986,87.429,87.382,0.3595349]
[1770575227744,3.87854986,87.429,87.383,10.3074]
[1770575228542,3.87854986,87.429,87.384,0.38393676]
[1770575229836,3.86789744,87.399,87.36,10.3102]
[1770575230942,3.86789744,87.399,87.36,14.67507167]
[1770575231144,3.86789744,87.399,87.36,10.3102]
[1770575231343,3.86789744,87.413,87.365,0.38083973]
[1770575231547,9.15036536,87.412,87.365,0.38083973]
[1770575231747,3.86789744,87.413,87.365,0.38083973]
[1770575232742,3.86789744,87.413,87.36,4.36487167]
[1770575232743,3.86789744,87.413,87.369,0.4486333]
[1770575233349,9.16454505,87.412,87.369,0.4486333]
[1770575233545,9.16454505,87.411,87.37,4.36487167]
[1770575233746,3.86789744,87.413,87.371,10.3088]
[1770575233947,9.16463626,87.412,87.371,10.3088]
[1770575234154,3.84734807,87.41,87.371,10.3088]
[1770575234350,3.84734807,87.408,87.371,10.3088]
[1770575234857,3.84734807,87.408,87.36,4.36487167]
[1770575235059,4.02152018,87.406,87.36,4.36487167]
[1770575235257,4.02152018,87.404,87.36,4.36487167]
[1770575235458,4.02152018,87.404,87.365,0.42745447]
[1770575235758,4.02152018,87.419,87.365,0.42745447]